bitfinex/quotes_BTCUSD_20220105
["timestamp","ask_amount","ask_price","bid_price","bid_amount"]
[1641422194979,0.116477,42966.0,42952.0,0.00126751]
[1641422195178,0.0053902,42964.0,42952.0,0.00126751]
[1641422195578,0.111477,42966.0,42952.0,0.00126751]
[1641422195780,0.116475,42988.0,42952.0,0.00126751]
[1641422195978,0.63391154,43001.0,42952.0,0.00126751]
[1641422195979,0.43746631,42982.0,42959.0,0.00120538]
[1641422196178,0.35,42982.0,42959.0,0.00120538]
[1641422196483,0.4322467,42981.0,42959.0,0.00120538]
[1641422196677,0.35,42982.0,42959.0,0.00120538]
[1641422196881,0.058234,42972.0,42959.0,0.00120538]
[1641422197080,0.72246606,43003.0,42959.0,0.00120538]
[1641422197330,0.0115,43001.0,42971.0,0.1991]
[1641422197527,0.35,42989.0,42972.0,0.31836942]
[1641422197729,0.35,42989.0,42964.0,0.0012626]
[1641422197730,0.174693,42982.0,42964.0,0.0012626]
[1641422197927,0.05823,42974.0,42964.0,0.0012626]
[1641422198127,0.69798,42988.0,42961.0,0.31836942]
[1641422198128,0.69798,42988.0,42968.0,0.00121555]
[1641422198328,0.69798,42988.0,42975.0,0.00120262]
[1641422198927,0.756185,42988.0,42982.0,0.1989]
[1641422199127,0.756185,42988.0,42961.0,0.15]
[1641422199333,0.75052408,42988.0,42970.0,0.00122176]
[1641422199527,0.75052408,42988.0,42970.0,0.31959118]
[1641422199730,0.508108,43008.0,42970.0,0.31959118]
[1641422199731,0.4499,43008.0,42971.0,0.456957]
[1641422199934,0.0189447,43020.0,42983.0,0.00122011]
[1641422200330,0.0189447,43020.0,42990.0,0.00126731]
[1641422200331,0.35,43019.0,42990.0,0.00126731]
[1641422200529,0.0189447,43020.0,42990.0,0.00126731]
[1641422200530,0.03168574,43008.0,42990.0,0.00126731]
[1641422200830,0.05818,43012.0,42997.0,0.00125979]
[1641422201074,0.0189447,43020.0,42997.0,0.00122842]
[1641422201273,0.0189447,43020.0,42993.0,0.31836942]
[1641422201473,0.0189447,43020.0,43003.0,0.00127604]
[1641422201871,0.0189447,43020.0,43003.0,0.31964546]
[1641422202072,0.0189447,43020.0,43008.0,0.00126859]
[1641422202373,0.0189447,43020.0,43009.0,0.14980482]
[1641422202772,0.0189447,43020.0,43010.0,0.33311015]
[1641422202974,0.0189447,43020.0,43011.0,0.00122087]
[1641422204074,0.0069532,43013.0,43011.0,0.00122087]
[1641422204741,0.116299,43037.0,43011.0,0.00122087]
[1641422204742,0.29944814,43054.0,43018.0,0.00102534]
[1641422204931,0.001867,43062.0,43038.0,0.00087685]
[1641422205137,0.001867,43062.0,43038.0,0.00048673]
[1641422205138,0.01209066,43060.0,43038.0,0.00048673]
[1641422205545,0.00313243,43062.0,43038.0,0.00048673]
[1641422205546,0.0125788,43042.0,43038.0,0.00048673]
[1641422205730,0.00313243,43062.0,43038.0,0.00048673]
[1641422205932,0.063269,43046.0,43041.0,0.1]
[1641422206132,0.001867,43062.0,43043.0,0.00082723]
[1641422206333,0.001867,43062.0,43047.0,0.00037258]
[1641422206534,0.06524182,43056.0,43047.0,0.00037258]
[1641422206734,0.06512982,43056.0,43042.0,0.00120131]
[1641422206934,0.001867,43062.0,43028.0,0.05811]
[1641422207134,0.001867,43062.0,43024.0,0.08212]
[1641422207335,0.001867,43062.0,43035.0,0.00122352]
[1641422207336,0.00127489,43056.0,43035.0,0.00122352]
[1641422207533,0.0294811,43065.0,43042.0,0.00122894]
[1641422207534,0.0113481,43065.0,43042.0,0.00122894]
[1641422207738,0.0097781,43065.0,43042.0,0.00122894]
[1641422207935,0.0084733,43084.0,43042.0,0.00122894]
[1641422207936,0.00050971,43076.0,43051.0,0.00125175]
[1641422208340,0.00150342,43076.0,43058.0,0.00101985]
[1641422208771,0.00113452,43078.0,43051.0,0.05482552]
[1641422208972,0.00582806,43084.0,43052.0,0.3306952]
[1641422209170,0.00582806,43084.0,43066.0,0.00121679]
[1641422209374,3.0,43102.0,43073.0,0.00109996]
[1641422209574,0.0001,43080.0,43073.0,0.00109996]
[1641422209970,0.0001,43080.0,43078.0,0.0012889]
[1641422210174,0.0001,43080.0,43052.0,0.9555]
[1641422210175,0.00129593,43096.0,43076.0,0.00123636]
[1641422210379,0.00520793,43101.0,43076.0,0.00123636]
[1641422210572,0.00143483,43105.0,43076.0,0.00123636]
[1641422210772,0.05343791,43107.0,43081.0,0.00120894]
[1641422210973,0.05343791,43107.0,43094.0,0.00123205]
[1641422211273,0.05343791,43107.0,43099.0,0.0004336]
[1641422211472,0.05343791,43107.0,43087.0,0.058025]
[1641422211673,0.05343791,43107.0,43088.0,0.3306952]
[1641422211872,0.04843791,43107.0,43094.0,0.00123575]
[1641422212718,0.04343791,43107.0,43094.0,0.00123575]
[1641422212922,0.04313791,43107.0,43100.0,0.00128387]
[1641422213619,0.04313791,43107.0,43106.0,0.00106993]
[1641422213819,0.03813791,43107.0,43106.0,0.00106993]
[1641422214019,0.0001,43110.0,43106.0,0.37614693]
[1641422214218,0.0001,43110.0,43107.0,0.375077]
[1641422214419,0.0001,43110.0,43109.0,0.00128384]
[1641422214618,0.0001,43110.0,43109.0,0.68495976]
[1641422214818,0.01192351,43114.0,43109.0,0.68495976]
[1641422215018,0.01192351,43114.0,43113.0,0.00125997]
[1641422215219,0.0279432,43118.0,43113.0,0.37051204]
[1641422215423,0.0279432,43118.0,43113.0,0.36927785]
[1641422215720,0.0279432,43118.0,43110.0,0.30859892]
[1641422215721,0.0229432,43118.0,43110.0,0.173965]
[1641422215966,0.00057367,43114.0,43111.0,0.360494]
[1641422216166,0.0050881,43118.0,43112.0,0.0012304]
[1641422216368,0.0001,43120.0,43113.0,0.370425]
[1641422216567,0.0001,43120.0,43114.0,0.08139]
[1641422216767,0.0001,43120.0,43119.0,0.00120334]
[1641422216966,0.0189447,43124.0,43119.0,0.07135334]
[1641422217166,0.0189447,43124.0,43123.0,0.00127482]
[1641422217870,0.0001,43140.0,43123.0,0.00127482]
[1641422218075,0.0001,43140.0,43125.0,0.00129964]
[1641422218266,0.0001,43140.0,43125.0,0.05604268]
[1641422218466,0.0001,43140.0,43127.0,0.00128804]
[1641422218667,0.0001,43140.0,43127.0,0.37177004]
[1641422218965,0.0001,43140.0,43127.0,0.42177004]
[1641422219167,0.0001,43140.0,43127.0,0.37177004]
[1641422219366,0.02683732,43146.0,43127.0,0.37177004]
[1641422219367,0.02209732,43146.0,43127.0,0.37177004]
[1641422219576,0.01306449,43182.0,43128.0,0.76047092]
[1641422219823,0.5787,43187.0,43144.0,0.15]
[1641422219824,0.00125548,43160.0,43144.0,0.15]
[1641422220030,0.0012589,43171.0,43144.0,0.30927]
[1641422220319,0.19827977,43191.0,43145.0,0.30859892]
[1641422220320,0.35,43176.0,43145.0,0.30859892]
[1641422220520,0.057972,43165.0,43152.0,0.00126368]
[1641422220736,0.052972,43165.0,43152.0,0.00126368]
[1641422220920,0.016681,43161.0,43152.0,0.00126368]
[1641422221130,0.016681,43161.0,43107.0,0.00624535]
[1641422221131,0.35,43153.0,43133.0,0.00120284]
[1641422221331,0.35,43137.0,43124.0,0.00128988]
[1641422221526,0.016681,43133.0,43103.0,0.07418002]
[1641422221725,0.00126109,43138.0,43116.0,0.00129233]
[1641422221922,0.00121942,43133.0,43116.0,0.00129233]
[1641422222119,0.00126109,43138.0,43116.0,0.00129233]
[1641422222120,0.35,43137.0,43116.0,0.00129233]
[1641422222321,0.015441,43136.0,43114.0,0.05104844]
[1641422222521,0.00121339,43133.0,43117.0,0.00127616]
[1641422222922,0.01665326,43136.0,43119.0,0.00126639]
[1641422223120,0.116025,43141.0,43115.0,0.00125506]
[1641422223121,0.00124826,43131.0,43115.0,0.00125506]
[1641422223327,0.00121494,43134.0,43115.0,0.00125506]
[1641422223573,0.116025,43141.0,43115.0,0.00125506]
[1641422223574,0.00125802,43133.0,43115.0,0.00125506]
[1641422223970,0.00125802,43133.0,43111.0,0.00124485]
[1641422224169,0.1,43116.0,43105.0,0.15]
[1641422224371,0.10120145,43126.0,43106.0,0.30859892]
[1641422224573,0.10120145,43126.0,43104.0,0.0012696]
[1641422224971,0.45120145,43126.0,43104.0,0.0012696]
[1641422225172,0.45120145,43126.0,43074.0,0.31341]
[1641422225173,3.07873475,43076.0,43074.0,0.31341]
[1641422225373,1.68593875,43076.0,43074.0,0.31341]
[1641422225771,0.75540775,43076.0,43075.0,0.0592977]
[1641422225974,0.09115075,43076.0,43075.0,0.0592977]
[1641422226173,0.11607,43127.0,43076.0,0.370397]
[1641422226174,0.30859892,43125.0,43076.0,0.370397]
[1641422226371,0.30859892,43125.0,43075.0,0.13586929]
[1641422226372,0.0132599,43083.0,43075.0,0.13586929]
[1641422226571,0.00128901,43103.0,43091.0,0.00120893]
[1641422226778,0.30859892,43119.0,43072.0,0.17416866]
[1641422227072,0.30859892,43119.0,43087.0,0.00123628]
[1641422227073,0.00128152,43104.0,43087.0,0.00123628]
[1641422227322,0.00128152,43104.0,43091.0,0.00121035]
[1641422227524,0.00128914,43103.0,43084.0,0.00120222]
[1641422227726,0.00128914,43103.0,43094.0,0.0999]
[1641422228221,0.00128914,43103.0,43084.0,0.00120222]
[1641422228820,0.00071895,43103.0,43084.0,0.00120222]
[1641422229021,0.00071895,43103.0,43090.0,0.00123553]
[1641422229222,0.35,43121.0,43090.0,0.00123553]
[1641422229223,0.35,43119.0,43090.0,0.00123553]
[1641422229421,0.15,43127.0,43090.0,0.00123553]
[1641422229622,0.19870751,43103.0,43090.0,0.00123553]
[1641422230021,0.19692479,43103.0,43090.0,6.912e-05]
[1641422230222,0.18945479,43103.0,43090.0,6.912e-05]
[1641422230421,0.18784179,43103.0,43090.0,6.912e-05]
[1641422230620,0.00126509,43102.0,43090.0,6.912e-05]
[1641422230826,0.00128045,43111.0,43090.0,0.00124351]
[1641422231069,0.05803,43125.0,43097.0,0.00127946]
[1641422231070,0.00129409,43118.0,43097.0,0.00127946]
[1641422231275,0.05803,43125.0,43097.0,0.00127946]
[1641422231572,0.05803,43125.0,43103.0,0.00124907]
[1641422231968,0.35,43104.0,43103.0,0.0012964]
[1641422232169,0.00129599,43121.0,43086.0,0.00121643]
[1641422232170,0.35,43114.0,43086.0,0.00121643]
[1641422232372,0.35,43107.0,43086.0,1.643e-05]
[1641422232570,0.00122179,43107.0,43086.0,1.643e-05]
[1641422233173,0.00124009,43109.0,43092.0,0.00121934]
[1641422233370,0.00124009,43109.0,43086.0,1.643e-05]
[1641422233371,0.05928609,43109.0,43086.0,1.643e-05]
[1641422233572,0.05928609,43109.0,43086.0,0.00127831]
[1641422233774,0.1,43105.0,43086.0,0.00017831]
[1641422233974,0.0012954,43101.0,43086.0,0.00017831]
[1641422234275,0.0012954,43101.0,43067.0,0.00011]
[1641422234473,0.00123923,43095.0,43080.0,0.0012431]
[1641422234729,0.10123923,43095.0,43067.0,0.00011]
[1641422234921,0.10123923,43095.0,43073.0,0.00129565]
[1641422234922,0.00122865,43090.0,43073.0,0.00129565]
[1641422235125,0.45871067,43094.0,43073.0,0.00129565]
[1641422235325,0.1,43095.0,43073.0,0.00080565]
[1641422235326,0.00120351,43087.0,43073.0,0.00080565]
[1641422235525,0.1,43079.0,43072.0,0.00041539]
[1641422235726,0.1,43079.0,43068.0,0.00083802]
[1641422235925,0.00134422,43079.0,43064.0,0.00122269]
[1641422236125,0.15,43111.0,43043.0,0.00022]
[1641422236126,0.174213,43103.0,43069.0,0.0012206]
[1641422236335,0.174213,43103.0,43076.0,0.00124379]
[1641422236526,0.00121518,43099.0,43076.0,0.00124379]
[1641422236728,0.116135,43097.0,43076.0,0.00124379]
[1641422236928,0.116135,43097.0,43077.0,0.00015141]
[1641422237129,0.00128596,43088.0,43077.0,0.00015141]
[1641422237729,0.00128596,43088.0,43078.0,0.00127791]
[1641422238331,0.00021406,43088.0,43078.0,0.00127791]
[1641422238568,0.00021406,43088.0,43077.0,2.932e-05]
[1641422238769,0.058076,43085.0,43077.0,2.932e-05]
[1641422238979,0.058076,43085.0,43048.0,0.00011]
[1641422238980,0.00107873,43084.0,43065.0,0.00124642]
[1641422239168,0.00123219,43078.0,43059.0,0.00127006]
[1641422240174,0.00120797,43074.0,43048.0,0.00011]
[1641422240373,0.00120797,43074.0,43051.0,0.00127484]
[1641422240572,0.1,43059.0,43048.0,0.00011]
[1641422241270,0.1,43059.0,43044.0,0.00151762]
[1641422241271,0.00122809,43058.0,43044.0,6.762e-05]
[1641422241486,0.00122809,43058.0,43030.0,0.30048142]
[1641422241673,0.1,43052.0,43038.0,0.00120625]
[1641422241869,0.1,43052.0,43030.0,0.28173043]
[1641422241870,0.00127758,43051.0,43030.0,0.28173043]
[1641422242070,0.00128312,43044.0,43030.0,0.30147609]
[1641422242317,0.00128312,43044.0,43029.0,0.08942]
[1641422242318,0.00128312,43044.0,43029.0,0.00033]
[1641422242519,0.1,43032.0,43028.0,0.00022]
[1641422242719,0.00129834,43040.0,43028.0,0.00022]
[1641422243418,0.00129834,43040.0,43019.0,0.07075]
[1641422243419,0.00126491,43030.0,43000.0,0.5053]
[1641422243618,0.00126491,43030.0,43013.0,0.00011]
[1641422243619,0.00129433,43027.0,43013.0,0.00011]
[1641422243817,0.00129433,43027.0,43025.0,0.00011]
[1641422244416,0.11760533,43027.0,43025.0,0.00011]
[1641422244719,0.058152,43025.0,43023.0,0.00011]
[1641422244916,0.058152,43025.0,43023.0,0.00022]
[1641422245317,0.00126996,43024.0,43023.0,0.00022]
[1641422245717,0.00126996,43024.0,42988.0,0.27223109]
[1641422245979,0.00111335,43016.0,42996.0,0.00139717]
[1641422246179,0.00126846,43009.0,43006.0,0.00011]
[1641422246377,0.38130364,43017.0,43006.0,0.00011]
[1641422246378,0.40229558,43017.0,43006.0,0.00011]
[1641422246593,0.40229558,43017.0,42996.0,0.00011]
[1641422246594,0.35,43007.0,42988.0,0.00127027]
[1641422246782,0.40218558,43017.0,42963.0,2.88104692]
[1641422246783,0.28991774,43017.0,42977.0,0.00121167]
[1641422246980,0.058081,42997.0,42978.0,0.00122965]
[1641422247178,0.35,42998.0,42983.0,0.00011]
[1641422247380,0.28991774,43006.0,43003.0,0.00011]
[1641422247678,0.274564,43012.0,42983.0,0.00011]
[1641422247679,0.058206,42995.0,42983.0,0.00011]
[1641422247884,0.387046,42995.0,42984.0,0.0002219]
[1641422248082,0.28991774,43003.0,42984.0,0.0002219]
[1641422248083,0.0012204,42986.0,42984.0,0.0002219]
[1641422248283,0.0332664,42990.0,42984.0,0.0002219]
[1641422248480,0.15357,42998.0,42984.0,0.0002219]
[1641422248681,0.07884,42993.0,42984.0,0.0002219]
[1641422248882,0.95860214,42998.0,42984.0,0.0002219]
[1641422249087,0.00123154,42986.0,42984.0,0.0002219]
[1641422249282,0.28991774,42997.0,42984.0,0.0002219]
[1641422249482,0.35,42990.0,42984.0,0.0002219]
[1641422249733,0.116415,42991.0,42975.0,0.00011]
[1641422249925,0.05821,42984.0,42975.0,0.00011]
[1641422250127,0.05543,42984.0,42975.0,0.00011]
[1641422250328,0.35,42980.0,42975.0,0.00011]
[1641422250526,0.00123675,42978.0,42975.0,0.00011]
[1641422250727,0.25896823,42987.0,42975.0,0.00011]
[1641422250925,0.058224,42983.0,42975.0,0.00011]
[1641422251233,0.058224,42983.0,42960.0,0.00128053]
[1641422251234,0.037064,42983.0,42960.0,0.00128053]
[1641422251426,0.037064,42983.0,42947.0,0.01170379]
[1641422251427,0.00109822,42980.0,42948.0,0.05821]
[1641422251633,0.00109822,42980.0,42949.0,0.27889148]
[1641422251825,0.35,42974.0,42947.0,0.01170379]
[1641422252026,0.00044822,42980.0,42947.0,0.01170379]
[1641422252027,0.058123,42969.0,42947.0,0.01170379]
[1641422252227,0.00278843,42969.0,42947.0,0.01170379]
[1641422252426,0.27889148,42976.0,42947.0,0.01170379]
[1641422252427,0.35,42967.0,42947.0,0.01170379]
[1641422252627,0.05,42976.0,42970.0,0.00011]
[1641422252830,0.00769173,42966.0,42930.0,0.11483449]
[1641422253029,0.00758173,42966.0,42939.0,0.00121351]
[1641422253229,0.27889148,42966.0,42939.0,0.00121351]
[1641422253479,0.35120005,42971.0,42939.0,0.00121351]
[1641422253480,0.00126608,42961.0,42939.0,0.00121351]
[1641422253676,0.3865985,42961.0,42939.0,0.00121351]
[1641422253882,0.3655485,42961.0,42939.0,0.00121351]
[1641422254077,0.3655485,42961.0,42929.0,0.00011]
[1641422254078,0.387193,42961.0,42933.0,0.00120227]
[1641422254382,0.26175034,42961.0,42933.0,0.00120227]
[1641422254577,0.02895,42961.0,42933.0,0.00120227]
[1641422254776,0.35,42951.0,42929.0,0.00011]
[1641422254977,0.058257,42952.0,42929.0,0.00011]
[1641422255177,0.058147,42952.0,42929.0,0.00011]
[1641422255377,0.037097,42952.0,42929.0,0.00011]
[1641422255579,0.73277651,42961.0,42929.0,0.00011]
[1641422255777,0.35,42955.0,42929.0,0.00011]
[1641422255978,0.02877707,42956.0,42929.0,0.00011]
[1641422256277,0.04989,42952.0,42929.0,0.00011]
[1641422256477,0.26186034,42951.0,42909.0,0.24958211]
[1641422256679,0.058258,42951.0,42922.0,0.00127294]
[1641422256882,0.39080951,42951.0,42922.0,0.00127294]
[1641422257080,0.145365,42952.0,42921.0,8.294e-05]
[1641422257081,0.26186034,42950.0,42921.0,8.294e-05]
[1641422257324,0.25763863,42950.0,42918.0,0.01600435]
[1641422257524,0.25763863,42950.0,42904.0,9.024e-05]
[1641422257525,0.35,42929.0,42904.0,9.024e-05]
[1641422257726,0.26186034,42928.0,42904.0,9.024e-05]
[1641422258121,0.26186034,42928.0,42904.0,8.485e-05]
[1641422258323,0.35,42922.0,42902.0,0.00122212]
[1641422258521,0.35,42919.0,42897.0,2.3405596]
[1641422258724,0.058202,42911.0,42883.0,2.3403396]
[1641422258921,0.00121462,42904.0,42894.0,0.00011]
[1641422259121,0.00110462,42904.0,42894.0,0.00011]
[1641422259525,0.00099462,42904.0,42894.0,0.00011]
[1641422259724,0.00028749,42909.0,42894.0,0.00011]
[1641422259923,0.00028749,42909.0,42885.0,0.01018956]
[1641422259924,0.00126006,42898.0,42885.0,0.01018956]
[1641422260225,0.00115006,42898.0,42892.0,0.00011]
[1641422260623,0.0012091,42900.0,42892.0,0.00011]
[1641422261078,0.4,42917.0,42892.0,0.00011]
[1641422261079,0.00128206,42909.0,42892.0,0.00011]
[1641422261378,0.26186034,42916.0,42914.0,0.00877145]
[1641422261579,0.05,42917.0,42892.0,0.00011]
[1641422261580,0.1,42915.0,42892.0,0.00011]
[1641422261778,0.26186034,42914.0,42892.0,0.00011]
[1641422262188,0.058315,42913.0,42892.0,0.00011]
[1641422262778,0.00129458,42902.0,42892.0,0.00011]
[1641422262980,0.26186034,42914.0,42892.0,0.00011]
[1641422263282,0.05124887,42917.0,42893.0,0.0012406]
[1641422263479,0.05124887,42917.0,42898.0,9.03e-05]
[1641422263780,0.00124887,42917.0,42898.0,9.03e-05]
[1641422263980,0.26186034,42927.0,42898.0,9.03e-05]
[1641422264180,0.99757811,42925.0,42899.0,0.00123549]
[1641422264381,0.32244874,42924.0,42899.0,0.00123549]
[1641422264579,0.00126601,42924.0,42899.0,0.00123549]
[1641422265024,0.00126601,42924.0,42906.0,0.01136015]
[1641422265025,0.7390126,42921.0,42906.0,0.01136015]
[1641422265427,0.0001,42910.0,42906.0,0.01136015]
[1641422266133,0.99767811,42930.0,42909.0,0.15128679]
[1641422266331,0.0239,42928.0,42926.0,0.0012142]
[1641422266527,0.0239,42928.0,42911.0,0.1]
[1641422266528,0.37037811,42930.0,42929.0,0.00124018]
[1641422266727,0.07925341,42936.0,42929.0,0.00124018]
[1641422267030,0.05,42948.0,42938.0,0.058208]
[1641422267228,5.191e-05,42946.0,42945.0,0.00123189]
[1641422267431,1.3716699,42968.0,42945.0,0.00123189]
[1641422267432,1.2469726,42955.0,42945.0,0.00123189]
[1641422267829,1.2469726,42955.0,42945.0,0.00120149]
[1641422268486,0.0001,42960.0,42949.0,0.00120187]
[1641422268685,0.0001,42960.0,42950.0,0.370397]
[1641422268888,0.0001,42960.0,42959.0,0.00125406]
[1641422269084,0.0001,42960.0,42959.0,0.37165106]
[1641422269290,0.0501,42980.0,42959.0,0.42165106]
[1641422269489,0.15,42976.0,42969.0,0.00122078]
[1641422269688,0.15,42976.0,42945.0,0.116393]
[1641422269886,0.15,42976.0,42957.0,0.00123145]
[1641422270487,0.15,42976.0,42962.0,0.00128763]
[1641422271088,0.15,42976.0,42970.0,0.0242]
[1641422271487,0.0001,42980.0,42972.0,0.00121064]
[1641422271887,0.0001,42980.0,42978.0,0.00128398]
[1641422272329,0.0001,42980.0,42979.0,0.00126012]
[1641422272534,0.0001,42980.0,42970.0,0.0242]
[1641422272739,30.95309056,42922.0,42921.0,3.19349]
[1641422272932,29.3347217,42922.0,42921.0,4.09591862]
[1641422273131,25.86419502,42922.0,42921.0,5.19581862]
[1641422273329,23.58819678,42922.0,42921.0,5.81490052]
[1641422273529,20.76038546,42922.0,42921.0,7.21647289]
[1641422273729,20.76038546,42922.0,42921.0,7.56433181]
[1641422273730,19.79600796,42922.0,42921.0,7.56433181]
[1641422273927,17.72403612,42922.0,42921.0,7.56433181]
[1641422274127,17.25989392,42922.0,42921.0,6.05618201]
[1641422274330,15.86452836,42922.0,42921.0,1.95024964]
[1641422274528,12.18655753,42922.0,42921.0,2.18304664]
[1641422274829,11.02388388,42922.0,42921.0,3.40998664]
[1641422275030,9.861608,42922.0,42921.0,3.40998664]
[1641422275228,9.6295052,42922.0,42921.0,3.40998664]
[1641422275433,4.05436218,42922.0,42921.0,3.41004664]
[1641422275629,4.05436218,42922.0,42921.0,4.31879264]
[1641422275630,3.29869081,42922.0,42921.0,4.31879264]
[1641422275829,2.93990268,42922.0,42921.0,5.54310369]
[1641422276072,0.00126824,42955.0,42925.0,0.370397]
[1641422276276,0.0001,42980.0,42953.0,0.00122539]
[1641422276277,0.1,42972.0,42953.0,0.00122539]
[1641422276474,0.0001,42980.0,42970.0,0.00128154]
[1641422277572,0.0001,42980.0,42975.0,0.00125424]
[1641422278173,0.0001,42980.0,42979.0,0.0012251]
[1641422278976,0.0001,42980.0,42979.0,0.00128684]
[1641422279174,0.0964,42984.0,42979.0,0.00128684]
[1641422279373,0.0964,42984.0,42983.0,0.00125996]
[1641422279374,0.0464,42984.0,42983.0,0.00125996]
[1641422279575,0.75080509,42992.0,42983.0,0.00125996]
[1641422279576,0.01339796,42987.0,42983.0,0.00125996]
[1641422280135,0.75080509,42992.0,42986.0,0.00127844]
[1641422280333,0.0001,43000.0,42991.0,0.00124653]
[1641422280537,0.75081387,42996.0,42991.0,0.00124653]
[1641422280732,0.0001,43000.0,42991.0,0.00124653]
[1641422280933,0.0001,43000.0,42999.0,0.00128565]
[1641422281332,0.0001,43010.0,43004.0,0.058116]
[1641422281537,0.0001,43010.0,43008.0,0.00122935]
[1641422282041,0.0001,43010.0,43009.0,0.00123992]
[1641422282234,0.0001,43010.0,43009.0,0.37163692]
[1641422282538,0.15,43025.0,43014.0,0.058107]
[1641422282736,0.15,43025.0,43015.0,0.370397]
[1641422282935,0.0001,43030.0,43018.0,0.0012675]
[1641422283146,0.0001,43030.0,43019.0,0.370397]
[1641422283576,0.0001,43030.0,43029.0,0.00127975]
[1641422285682,0.0001,43030.0,43029.0,0.37167675]
[1641422286277,0.15,43041.0,43029.0,0.37167675]
[1641422286476,0.1501,43040.0,43039.0,0.00125962]
[1641422286979,0.1001,43042.0,43039.0,0.00125962]
[1641422287238,0.1001,43042.0,43041.0,0.00129786]
[1641422288034,0.0951,43042.0,43041.0,0.00129786]
[1641422288238,0.0951,43042.0,43041.0,0.05936586]
[1641422288434,0.0951,43042.0,43041.0,0.42976286]
[1641422289033,0.0001,43050.0,43041.0,0.42976286]
[1641422289235,0.0001,43050.0,43049.0,0.00127962]
[1641422290034,0.0001,43050.0,43049.0,0.37167662]
[1641422290234,0.0001,43050.0,43049.0,0.37177302]
[1641422290438,0.0001,43060.0,43056.0,0.00123108]
[1641422291084,0.0001,43060.0,43054.0,0.058053]
[1641422291280,0.0001,43060.0,43052.0,0.116105]
[1641422291485,0.0001,43060.0,43049.0,9.64e-05]
[1641422291882,0.0013763,43060.0,43049.0,9.64e-05]
[1641422292083,0.1,43057.0,43049.0,9.64e-05]
[1641422292683,0.0975,43057.0,43049.0,9.64e-05]
[1641422292883,0.0013763,43060.0,43049.0,9.64e-05]
[1641422294285,0.0001,43060.0,43049.0,9.64e-05]
[1641422294924,0.0001,43060.0,43052.0,0.00123999]
[1641422295323,0.09644458,43075.0,43052.0,0.00123999]
[1641422295523,0.15,43078.0,43052.0,0.00123999]
[1641422295524,0.00120046,43073.0,43052.0,0.00123999]
[1641422295926,0.00120046,43073.0,43060.0,0.00355542]
[1641422296131,0.00127035,43076.0,43060.0,0.00355542]
[1641422296326,0.00127035,43076.0,43059.0,0.00128673]
[1641422296529,0.0001,43080.0,43064.0,0.00355542]
[1641422296729,0.0001,43080.0,43066.0,0.00127907]
[1641422297126,0.35813376,43089.0,43066.0,0.00127907]
[1641422297527,0.0013475,43090.0,43066.0,0.00127907]
[1641422297729,0.0013475,43090.0,43072.0,0.00126469]
[1641422298127,0.00123705,43085.0,43065.0,0.00355542]
[1641422298328,0.0001,43090.0,43072.0,0.00126228]
[1641422298782,0.0001,43090.0,43070.0,0.00355542]
[1641422298979,0.0001,43090.0,43083.0,0.00120471]
[1641422299376,0.00649202,43100.0,43083.0,0.00120471]
[1641422299577,0.09644458,43108.0,43083.0,0.00120471]
[1641422299776,0.09014458,43109.0,43086.0,0.00122356]
[1641422299976,0.0001,43110.0,43086.0,0.00122356]
[1641422300177,0.00123436,43104.0,43081.0,0.35813376]
[1641422300382,0.00129535,43110.0,43084.0,0.00126501]
[1641422300577,0.00129535,43110.0,43091.0,0.00121708]
[1641422300776,0.058014,43117.0,43091.0,0.00121708]
[1641422300777,0.05054777,43117.0,43099.0,0.00123199]
[1641422300977,0.04930935,43117.0,43100.0,0.00121504]
[1641422301178,0.04930935,43117.0,43094.0,0.00125256]
[1641422301487,0.00046347,43110.0,43094.0,0.00125256]
[1641422301877,1.347e-05,43110.0,43094.0,0.00125256]
[1641422302729,0.04015805,43119.0,43095.0,0.05984195]
[1641422302926,0.04015805,43119.0,43096.0,0.35813376]
[1641422303129,0.00139466,43120.0,43100.0,0.00125354]
[1641422303627,0.208003,43125.0,43100.0,0.00125354]
[1641422303928,0.00127531,43120.0,43107.0,0.05984195]
[1641422304132,0.09816105,43125.0,43107.0,0.05984195]
[1641422304328,0.09816105,43125.0,43108.0,0.00127699]
[1641422304927,0.37831021,43124.0,43082.0,0.09383403]
[1641422305129,0.00121173,43121.0,43107.0,0.05984195]
[1641422305328,0.00120433,43114.0,43107.0,0.05984195]
[1641422305530,0.00120433,43114.0,43105.0,0.05984195]
[1641422305728,0.00120433,43114.0,43098.0,0.00129514]
[1641422305977,0.00120433,43114.0,43107.0,0.05984195]
[1641422306176,0.34489301,43125.0,43107.0,0.05984195]
[1641422306376,0.44610631,43125.0,43098.0,0.00129514]
[1641422306578,0.49610631,43125.0,43106.0,0.05984195]
[1641422306783,0.35368868,43124.0,43105.0,0.04984195]
[1641422306979,0.35368868,43124.0,43103.0,0.00125152]
[1641422307181,0.35368868,43124.0,43111.0,0.04984195]
[1641422307380,0.00121505,43126.0,43111.0,0.04984195]
[1641422307786,0.41168768,43128.0,43121.0,0.04984195]
[1641422307982,0.00124325,43129.0,43108.0,0.00125489]
[1641422308383,0.00124325,43129.0,43116.0,0.04984195]
[1641422308583,0.01438325,43129.0,43099.0,0.05464889]
[1641422308784,0.00126942,43124.0,43114.0,0.04984195]
[1641422309286,0.3474113,43128.0,43114.0,0.04984195]
[1641422309483,0.00926742,43129.0,43114.0,0.04984195]
[1641422309729,0.00926742,43129.0,43112.0,0.04984195]
[1641422309922,0.00926742,43129.0,43104.0,0.04984195]
[1641422310224,0.06726442,43129.0,43113.0,0.04984195]
[1641422310923,0.00926742,43129.0,43113.0,0.04984195]
[1641422311525,0.115997,43132.0,43093.0,0.115991]
[1641422311526,0.00121392,43120.0,43093.0,0.115991]
[1641422311728,0.00121392,43120.0,43101.0,0.00124698]
[1641422311932,0.00121392,43120.0,43104.0,9.817e-05]
[1641422312524,0.05422192,43121.0,43104.0,9.817e-05]
[1641422312724,0.00126847,43126.0,43104.0,9.817e-05]
[1641422312925,0.11728047,43126.0,43104.0,9.817e-05]
[1641422313125,0.058006,43125.0,43104.0,9.817e-05]
[1641422313324,0.058006,43121.0,43104.0,9.817e-05]
[1641422313574,0.00126847,43126.0,43104.0,0.00132944]
[1641422314774,0.057997,43128.0,43104.0,0.00132944]
[1641422315875,0.058004,43123.0,43104.0,9.817e-05]
[1641422316877,0.34988518,43122.0,43104.0,9.817e-05]
[1641422317324,0.057997,43127.0,43104.0,9.817e-05]
[1641422317523,0.34928014,43126.0,43104.0,9.817e-05]
[1641422317725,0.03718902,43127.0,43104.0,9.817e-05]
[1641422317925,0.07357138,43130.0,43104.0,9.817e-05]
[1641422318125,0.06629511,43130.0,43108.0,0.00121596]
[1641422318324,6.0,43134.0,43108.0,0.00121596]